bitfinex-derivatives/quotes_ETHF0:USTF0_20250102
["timestamp","ask_amount","ask_price","bid_price","bid_amount"]
[1735797975773,4.83660155,3416.3,3416.2,0.29326]
[1735797976375,8.04440155,3416.3,3416.2,0.29326]
[1735797977479,9.19502693,3416.3,3416.2,0.29326]
[1735797980086,3.4419,3416.3,3416.2,0.29326]
[1735797981476,3.73515,3416.3,3416.2,0.29326]
[1735797982277,3.4419,3416.3,3416.2,0.29326]
[1735797982475,3.4419,3416.3,3416.0,0.6185]
[1735797982676,0.29326,3416.2,3416.0,0.91177]
[1735797982880,1.2599,3416.1,3416.0,0.91177]
[1735797983380,1.2599,3416.1,3416.0,0.6185]
[1735797983571,0.29329,3415.9,3415.8,1.158]
[1735797983885,3.50109,3415.9,3415.8,1.158]
[1735797985283,3.2078,3415.9,3415.3,2.93551845]
[1735797985582,0.29331,3415.6,3415.4,1.8096]
[1735797985783,0.6128,3415.5,3415.4,2.10292]
[1735797986076,1.2503,3415.5,3415.4,2.10292]
[1735797986281,5.85369241,3415.5,3415.4,2.10293]
[1735797986982,6.49539241,3415.5,3415.4,0.94493]
[1735797987675,0.29333,3415.4,3415.2,0.29334]
[1735797988683,6.04645693,3415.4,3415.2,0.29334]
[1735797989074,6.04645693,3415.4,3415.0,0.6024]
[1735797989075,5.75312693,3415.4,3415.0,0.6024]
[1735797989281,3.50115,3415.1,3415.0,0.6024]
[1735797989478,0.29337,3414.9,3414.8,1.158]
[1735797989674,0.29339,3414.7,3414.6,0.6024]
[1735797989877,0.29339,3414.7,3414.5,1.158]
[1735797989878,0.29339,3414.6,3414.5,1.158]
[1735797990082,0.90399,3414.6,3414.5,1.158]
[1735797990381,0.6106,3414.6,3414.5,1.4514]
[1735797991686,6.36372693,3414.6,3414.5,1.4514]
[1735797992385,0.6106,3414.6,3414.5,1.4514]
[1735797992982,0.6106,3414.6,3414.5,0.2934]
[1735797993683,5.20641917,3414.6,3414.5,0.2934]
[1735797994779,0.6106,3414.6,3414.5,0.2934]
[1735797997678,0.90399,3414.6,3414.5,0.2934]
[1735797998088,0.6106,3414.6,3414.2,1.7604]
[1735797998285,0.29342,3414.4,3414.3,0.29342]
[1735797998480,0.29342,3414.4,3414.2,0.89583]
[1735797999189,0.29342,3414.3,3414.2,0.29343]
[1735798000291,0.29342,3414.3,3414.1,0.29343]
[1735798000580,0.29344,3414.1,3413.9,0.64]
[1735798000983,0.29344,3414.1,3414.0,0.29345]
[1735798001485,0.29344,3414.1,3413.9,0.64]
[1735798001486,0.29345,3414.0,3413.9,0.64]
[1735798001685,0.6211,3414.0,3413.9,0.93345]
[1735798001881,6.48524,3414.1,3413.9,0.93345]
[1735798003484,6.1918,3414.1,3414.0,0.29345]
[1735798003679,6.48524,3414.1,3414.0,0.29345]
[1735798003885,6.48524,3414.1,3413.9,0.64]
[1735798004090,6.1918,3414.1,3414.0,0.29345]
[1735798004387,6.1918,3414.1,3413.9,0.64]
[1735798004388,6.48524,3414.1,3413.9,0.64]
[1735798004690,6.48524,3414.1,3413.9,0.93345]
[1735798005783,6.48524,3414.1,3414.0,0.29345]
[1735798005978,6.1918,3414.1,3414.0,0.29345]
[1735798006593,6.48524,3414.1,3413.9,0.93345]
[1735798006792,6.1918,3414.1,3414.0,0.29345]
[1735798007691,6.48524,3414.1,3414.0,0.29345]
[1735798007887,6.48524,3414.1,3413.9,0.64]
[1735798007888,0.29345,3414.0,3413.9,0.93345]
[1735798008097,6.1918,3414.1,3413.9,0.64]
[1735798008590,0.2343,3414.0,3413.9,0.93345]
[1735798022104,0.9665,3414.0,3413.9,0.93345]
[1735798022303,0.9665,3414.0,3413.9,1.96538209]
[1735798025101,0.9665,3414.0,3413.9,3.12338209]
[1735798035019,1.2008,3414.0,3413.9,3.12338209]
[1735798036108,5.79661917,3414.0,3413.9,3.12338209]
[1735798038218,5.79661917,3414.0,3413.9,0.93345]
[1735798038425,5.79661917,3414.0,3413.8,2.18993209]
[1735798038721,1.2426,3413.9,3413.8,2.48339209]
[1735798039833,1.2426,3413.9,3413.8,2.18993209]
[1735798040122,1.2426,3413.9,3413.6,1.03193209]
[1735798040327,3.2078,3413.8,3413.7,0.29346]
[1735798041021,3.2078,3413.8,3413.6,1.32541209]
[1735798041630,3.2078,3413.8,3413.7,0.29347]
[1735798043733,3.2078,3413.8,3412.2,52.27939123]
[1735798043933,1.32541209,3413.7,3413.5,0.29349]
[1735798044133,4.01593209,3413.7,3413.0,4.23973209]
[1735798044331,1.03193209,3413.5,3413.4,0.2935]
[1735798044727,2.25883209,3413.5,3413.4,0.2935]
[1735798045929,2.55232209,3413.5,3413.4,0.2935]
[1735798046136,2.25883209,3413.5,3413.4,0.2935]
[1735798046434,1.2269,3413.5,3413.4,0.2935]
[1735798047030,1.2269,3413.5,3412.9,1.158]
[1735798047330,3.2078,3413.2,3412.9,1.158]
[1735798047535,3.2078,3413.2,3413.1,0.29352]
[1735798047734,3.50132,3413.2,3413.1,0.29352]
[1735798048133,0.29353,3413.1,3413.0,0.29353]
[1735798048732,0.29353,3413.0,3412.9,0.29354]
[1735798049028,3.2078,3413.2,3412.7,1.158]
[1735798049334,0.6651,3412.9,3412.8,0.29355]
[1735798050139,5.27499196,3412.9,3412.8,0.29355]
[1735798050628,5.27499196,3412.9,3412.7,1.158]
[1735798050629,0.29357,3412.7,3411.7,4.67602]
[1735798050830,3.50138,3412.5,3412.3,0.29359]
[1735798051327,3.50138,3412.5,3412.4,0.29358]
[1735798051525,7.81769196,3412.5,3412.3,0.29359]
[1735798051738,7.81769196,3412.5,3412.4,0.29358]
[1735798052432,7.81769196,3412.5,3412.3,0.29359]
[1735798052625,7.81769196,3412.5,3412.1,1.7719]
[1735798052626,3.2078,3412.5,3412.1,1.7719]
[1735798053136,3.2078,3412.5,3412.3,0.29359]
[1735798053836,4.60351273,3412.4,3412.3,0.29359]
[1735798054932,3.2078,3412.5,3412.3,0.29359]
[1735798054933,8.10489273,3412.5,3412.3,0.29359]
[1735798055136,7.81131273,3412.5,3412.4,0.29358]
[1735798055533,8.10489273,3412.5,3412.1,0.6139]
[1735798055735,8.10489273,3412.5,3412.3,0.29358]
[1735798056041,3.50138,3412.5,3412.3,0.29359]
[1735798056240,0.29362,3412.0,3411.4,40.8]
[1735798056440,0.6094,3411.9,3411.3,4.3658]
[1735798056734,0.6094,3411.9,3411.4,0.6261]
[1735798057040,0.6094,3411.9,3411.7,0.29364]
[1735798057340,0.6094,3411.9,3411.8,0.29364]
[1735798057637,0.6094,3411.9,3411.7,0.29364]
[1735798057835,0.6319,3411.8,3411.4,0.6261]
[1735798058028,3.2078,3411.6,3411.2,1.158]
[1735798058234,3.2078,3411.6,3411.4,0.29367]
[1735798058539,3.50145,3411.6,3411.4,0.29367]
[1735798058746,0.29366,3411.5,3411.2,2.09178]
[1735798058943,3.2078,3411.6,3411.2,1.7981]
[1735798059135,3.50146,3411.6,3411.3,0.29367]
[1735798059336,0.29366,3411.5,3411.2,2.09178]
[1735798059538,0.7328,3411.4,3411.2,2.09178]
[1735798059836,0.6108,3411.3,3411.2,2.09178]
[1735798060236,0.6108,3411.3,3411.2,0.6401]
[1735798060443,0.6108,3411.3,3411.2,0.93379]
[1735798061038,0.6108,3411.3,3411.1,0.29369]
[1735798061643,0.6351,3411.2,3411.1,0.29369]
[1735798062438,3.8429,3411.2,3411.1,0.29369]
[1735798064045,3.2078,3411.2,3411.1,0.29369]
[1735798064445,3.7168,3411.4,3410.9,0.6261]
[1735798064744,3.7168,3411.4,3411.3,0.29368]
[1735798065147,3.9513,3411.4,3411.3,0.29368]
[1735798069146,0.9673,3411.4,3411.3,0.29368]
[1735798071848,0.9673,3411.4,3411.3,2.58150677]
[1735798073851,0.9673,3411.4,3411.3,0.29368]
[1735798075652,0.9673,3411.4,3411.3,2.58150677]
[1735798077250,0.6762,3412.2,3412.1,0.29361]
[1735798077551,0.6762,3412.2,3411.5,0.73414]
[1735798077552,3.2078,3412.3,3412.2,0.2936]
[1735798077954,3.2078,3412.3,3412.0,0.29361]
[1735798078355,3.5014,3412.3,3412.0,0.29361]
[1735798078553,3.5014,3412.3,3412.1,0.29361]
[1735798078755,3.2078,3412.3,3411.8,1.158]
[1735798079164,3.50139,3412.3,3411.8,1.158]
[1735798079460,3.2078,3412.3,3412.2,0.2936]
[1735798080466,3.50139,3412.3,3412.2,0.2936]
[1735798081058,0.29361,3412.1,3412.0,0.29361]
[1735798081263,0.52801,3412.1,3412.0,0.29361]
[1735798081760,1.81981,3412.1,3412.0,0.29361]
[1735798081962,0.29362,3412.0,3411.9,0.29362]
[1735798082861,1.81981,3412.1,3412.0,0.29362]
[1735798083253,1.5262,3412.1,3412.0,0.29362]
[1735798090066,1.81981,3412.1,3412.0,0.29362]
[1735798090266,0.29363,3411.9,3411.8,1.45163]
[1735798090568,0.29363,3411.9,3411.6,1.158]
[1735798090569,3.2078,3411.9,3411.6,1.158]
[1735798090767,0.91434,3411.8,3411.7,0.29364]
[1735798091562,0.6207,3411.8,3411.7,0.29364]
[1735798092057,5.22421273,3411.8,3411.7,0.29364]
[1735798093461,5.33801273,3411.8,3411.7,0.29364]
[1735798095466,0.7345,3411.8,3411.7,0.29364]
[1735798096167,0.7345,3411.8,3411.6,1.158]
[1735798096363,0.6356,3411.7,3411.6,1.45165]
[1735798097760,5.76236495,3411.7,3411.6,1.45165]
[1735798098964,0.1138,3411.8,3411.6,1.45165]
[1735798098965,4.71966214,3411.8,3411.6,1.158]
[1735798099164,4.71966214,3411.8,3411.7,1.64484]
[1735798099365,4.71966214,3411.8,3411.7,2.27764]
[1735798100568,4.71966214,3411.8,3411.7,1.60404]
[1735798102264,4.71966214,3411.8,3411.7,0.97124]
[1735798103567,0.1138,3411.8,3411.7,0.6776]
[1735798103870,0.1138,3411.8,3411.6,1.158]
[1735798103871,0.40744,3411.8,3411.6,1.45164]
[1735798104371,3.61524,3411.8,3411.6,1.45164]
[1735798104761,5.76236495,3411.7,3411.6,1.45164]
[1735798105065,5.99676495,3411.7,3411.6,1.45164]
[1735798105473,6.29041495,3411.7,3411.5,0.29366]
[1735798105763,1.9465,3411.6,3411.5,0.29366]
[1735798106171,2.0838,3411.6,3411.5,0.29366]
[1735798106866,7.84616495,3411.6,3411.5,0.29366]
[1735798109267,7.84616495,3411.6,3411.4,1.158]
[1735798109477,10.13399172,3411.6,3410.9,3.2078]
[1735798109666,0.29368,3411.3,3411.0,0.2937]
[1735798110075,0.6505,3411.2,3410.8,1.158]
[1735798110271,0.68,3411.1,3411.0,0.2937]
[1735798111275,6.44236495,3411.1,3411.0,0.2937]
[1735798113277,0.68,3411.1,3411.0,0.2937]
[1735798114068,1.3171,3411.1,3411.0,0.2937]
[1735798114577,7.07946495,3411.1,3411.0,0.2937]
[1735798115179,7.37316495,3411.1,3410.9,0.29371]
[1735798115378,7.07946495,3411.1,3410.9,0.29371]
[1735798115772,7.07946495,3411.1,3410.8,1.158]
[1735798116081,3.50151,3411.0,3410.8,1.45172]
[1735798116580,3.50151,3411.0,3410.5,3.8942]
[1735798116776,0.29373,3410.7,3410.4,4.88550649]
[1735798116979,0.29373,3410.7,3410.4,6.04350649]
[1735798116980,0.6432,3410.6,3410.4,6.04350649]
[1735798117174,0.6934,3410.5,3410.4,1.45175]
[1735798117372,0.6934,3410.5,3410.4,0.29375]
[1735798119481,5.29663596,3410.5,3410.4,0.29375]
[1735798120379,5.29340436,3410.5,3410.4,0.29375]
[1735798120773,1.2995,3410.6,3410.4,2.28782677]
[1735798120774,4.60323596,3410.6,3410.4,2.28782677]
[1735798120975,4.60323596,3410.6,3410.5,0.29375]
[1735798121180,4.60323596,3410.6,3410.5,0.96785]
[1735798121582,4.60323596,3410.6,3410.5,0.29375]
[1735798122476,5.24073596,3410.7,3410.3,1.8025]
[1735798122784,0.6572,3410.5,3410.3,1.8025]
[1735798123084,0.6572,3410.5,3410.4,0.29376]
[1735798123481,4.10609521,3410.5,3410.4,0.29376]
[1735798125089,4.10609521,3410.5,3410.1,4.3658]
[1735798125282,4.10609521,3410.5,3410.2,0.29377]
[1735798125283,4.39984521,3410.5,3410.2,0.29377]
[1735798126485,4.39984521,3410.5,3410.3,0.29376]
[1735798126785,4.10609521,3410.5,3410.3,0.29376]
[1735798126986,4.10609521,3410.5,3410.2,0.29377]
[1735798126987,3.44889521,3410.3,3410.2,0.29377]
[1735798128788,3.44889521,3410.3,3410.2,0.93607]
[1735798129598,4.10609521,3410.5,3410.4,0.29376]
[1735798130287,4.10609521,3410.5,3410.0,0.6319]
[1735798130492,4.10609521,3410.5,3410.3,0.29376]
[1735798130791,5.26043596,3410.5,3410.3,0.29376]
[1735798131190,5.26043596,3410.5,3410.0,0.6319]
[1735798131397,5.26043596,3410.5,3410.4,0.29376]
[1735798131888,5.37423596,3410.5,3410.4,0.29376]
[1735798134687,5.37423596,3410.5,3410.4,2.58158677]
[1735798134688,4.71703596,3410.5,3410.4,2.58158677]
[1735798134887,4.71703596,3410.5,3410.4,5.78938677]
[1735798135088,1.54402974,3410.5,3410.4,5.78938677]
[1735798135286,5.76236495,3410.7,3410.6,0.29374]
[1735798135490,5.99686495,3410.7,3410.6,41.09374]
[1735798135786,3.67961808,3410.7,3410.6,41.09374]
[1735798136092,3.67961808,3410.7,3410.6,41.54753774]
[1735798136886,0.2345,3410.7,3410.6,41.54753774]
[1735798137982,0.2345,3410.7,3410.6,41.09374]
[1735798138395,0.2345,3410.7,3410.6,0.29374]
[1735798140389,2.2239,3410.7,3410.6,0.29374]
[1735798144691,2.2239,3410.7,3410.4,1.45175]
[1735798144897,2.2239,3410.7,3410.5,0.29374]
[1735798146091,2.2239,3410.7,3410.4,0.29375]
[1735798146496,2.2239,3410.7,3410.3,3.2078]
[1735798146795,2.2239,3410.7,3410.5,0.29375]
[1735798147189,0.29375,3410.5,3410.2,1.45177]
[1735798147395,3.2078,3410.3,3410.0,1.158]
[1735798147897,0.6678,3410.2,3410.0,1.158]
[1735798148089,1.63348,3410.1,3409.6,2.28782677]
[1735798148296,1.3397,3410.1,3409.7,1.158]
[1735798148496,0.2938,3410.0,3409.7,1.158]
[1735798148891,1.3397,3410.1,3409.3,7.79955649]
[1735798149102,0.29382,3409.7,3409.3,0.29385]
[1735798149294,3.50164,3409.4,3409.1,0.29386]
[1735798149594,1.74645,3409.3,3409.0,3.73969677]
[1735798150301,1.74645,3409.3,3409.0,1.45187]
[1735798150505,1.4526,3409.3,3409.0,1.158]
[1735798150696,1.74645,3409.3,3409.0,1.45187]
[1735798150998,3.44722557,3409.2,3409.0,1.45187]
[1735798151203,3.44722557,3409.2,3409.0,0.29387]
[1735798151395,3.44722557,3409.2,3408.9,1.158]
[1735798151593,3.44722557,3409.2,3409.0,0.29387]
[1735798152099,0.6792,3409.1,3408.9,1.45188]
[1735798152396,0.6792,3409.1,3408.4,2.28782677]
[1735798152600,0.29388,3408.9,3408.6,0.29391]
[1735798152801,3.50168,3409.0,3408.6,0.2939]
[1735798153001,3.2078,3409.0,3408.7,0.2939]
[1735798153198,3.50168,3409.0,3408.6,0.29391]
[1735798153503,3.50168,3409.0,3408.4,2.28782677]
[1735798153504,3.2078,3409.0,3408.4,2.28782677]
[1735798153801,3.2078,3409.0,3408.5,1.158]
[1735798154002,3.50168,3409.0,3408.6,0.29391]
[1735798154298,3.50168,3409.0,3408.5,1.158]
[1735798154299,3.2078,3409.0,3408.5,1.158]
[1735798154607,3.2078,3408.6,3408.5,1.158]
[1735798154902,3.2078,3408.6,3408.4,1.158]
[1735798155100,1.3087,3408.5,3408.4,1.158]
[1735798155295,1.9871,3408.5,3408.4,1.158]
[1735798155496,1.9871,3408.5,3408.3,0.29394]
[1735798156004,1.9871,3408.5,3408.3,0.29393]
[1735798156398,1.9871,3408.5,3408.2,1.158]
[1735798156899,2.28102,3408.5,3408.2,1.158]
[1735798157201,1.9871,3408.5,3408.2,1.158]
[1735798157399,1.9871,3408.5,3408.2,1.45194]
[1735798157608,1.9871,3408.5,3408.2,0.29394]
[1735798159200,2.28102,3408.5,3408.2,0.29394]
[1735798159401,1.9871,3408.5,3408.3,0.29394]
[1735798159997,0.29393,3408.4,3408.0,0.29396]
[1735798160202,0.29393,3408.4,3408.0,1.45296]
[1735798160794,2.28102,3408.5,3408.1,0.29395]
[1735798160999,0.29393,3408.4,3407.9,0.29396]
[1735798161303,0.29393,3408.4,3408.0,0.29396]
[1735798161304,3.2078,3408.2,3408.0,0.29396]
[1735798161897,3.2078,3408.2,3407.8,1.159]
[1735798162102,0.2347,3408.1,3407.9,0.29397]
[1735798162504,0.667,3408.0,3407.9,0.29397]
[1735798162694,0.667,3408.0,3407.5,2.28782677]
[1735798162900,0.667,3408.0,3407.7,0.29398]
[1735798163097,0.667,3408.0,3407.6,1.159]
[1735798163098,0.6299,3407.9,3407.6,0.29399]
[1735798163302,0.6594,3407.8,3407.4,4.3668]
[1735798163598,0.6594,3407.8,3407.5,0.294]
[1735798163907,0.6594,3407.8,3407.4,4.3668]
[1735798164211,3.2078,3407.6,3407.3,0.29402]
[1735798164503,3.2078,3407.6,3407.5,0.29401]
[1735798165398,3.2078,3407.6,3407.3,1.159]
[1735798165605,3.2078,3407.6,3407.5,0.29401]
[1735798171406,3.2078,3407.6,3407.3,1.159]
[1735798171712,3.2078,3407.6,3407.4,0.29401]
[1735798171904,3.2078,3407.6,3407.2,3.44682677]
[1735798172215,3.2078,3407.6,3407.5,0.294]
[1735798172608,3.2078,3407.6,3407.4,0.29401]
[1735798172809,0.6594,3407.8,3407.5,2.28782677]
[1735798173010,0.6594,3407.8,3407.7,0.29399]
[1735798173202,0.1371,3407.7,3407.6,3.2078]
[1735798173512,0.1371,3407.7,3407.6,44.3719]
[1735798176515,0.1371,3407.7,3407.6,45.5309]
[1735798177808,0.1371,3407.7,3407.6,4.7309]
[1735798178910,0.6292,3408.3,3408.0,0.29396]
[1735798179103,0.6292,3408.3,3408.0,5.78958677]
[1735798179713,0.6546,3408.7,3408.0,5.78958677]
[1735798179915,0.6283,3408.6,3408.0,5.78958677]
[1735798181222,0.6283,3408.6,3408.0,6.94858677]
[1735798181514,0.6283,3408.6,3408.0,7.40103001]
[1735798184220,3.79869463,3409.2,3409.1,0.29387]
[1735798184530,0.59089463,3409.2,3409.1,0.29387]
[1735798185618,1.87899463,3409.2,3409.1,0.29387]
[1735798187818,1.87899463,3409.2,3409.0,0.1163]
[1735798188021,0.29387,3409.1,3408.5,3.2078]
[1735798188213,2.17285463,3409.2,3408.9,0.29388]
[1735798188418,0.29387,3409.1,3408.9,0.29388]
[1735798188820,0.29387,3409.1,3408.5,3.2078]
[1735798189125,3.27787,3409.1,3409.0,0.29388]
[1735798190319,2.984,3409.1,3409.0,0.29388]
[1735798190525,3.27787,3409.1,3409.0,0.29388]
[1735798191926,0.29388,3409.0,3408.9,0.29388]
[1735798192520,6.72509557,3409.1,3409.0,0.29388]
[1735798193123,7.84647245,3409.1,3409.0,0.29388]
[1735798194024,7.55260245,3409.1,3408.5,1.159]
[1735798194228,0.29389,3408.9,3408.8,0.29389]
[1735798194431,0.29388,3409.0,3408.9,0.29388]
[1735798194926,3.27788,3409.0,3408.9,0.29388]
[1735798195624,2.984,3409.0,3408.9,0.29388]
[1735798196428,7.5830844,3409.0,3408.9,0.29388]
[1735798197927,2.984,3409.0,3408.9,0.29388]
[1735798198628,2.984,3409.0,3408.9,2.58170677]
[1735798200024,3.45044939,3409.1,3409.0,0.29388]
[1735798201026,3.45044939,3409.1,3409.0,0.92798]
[1735798201531,4.08834939,3409.4,3409.0,0.92798]
[1735798201731,4.08834939,3409.4,3409.3,0.29385]
[1735798202031,4.08834939,3409.4,3409.3,1.45185]
[1735798202735,0.6379,3409.4,3409.3,1.45185]
[1735798206742,0.7882,3409.4,3409.3,1.45185]
[1735798207041,0.7882,3409.4,3408.8,3.2078]
[1735798207231,3.2078,3409.3,3408.9,1.158]
[1735798207437,0.29387,3409.1,3408.9,1.158]
[1735798207938,0.29386,3409.2,3408.9,1.45188]
[1735798208138,0.647,3409.0,3408.9,1.45188]
[1735798209828,1.3265,3409.0,3408.9,1.45188]
[1735798212433,0.647,3409.0,3408.9,1.45188]
[1735798212640,4.5990844,3409.1,3409.0,0.29388]
[1735798214935,4.5990844,3409.1,3409.0,0.94098]
[1735798215542,3.44586277,3409.1,3409.0,0.94098]
[1735798216544,0.628,3409.2,3409.1,0.29387]
[1735798218041,3.8358,3409.2,3409.1,0.29387]
[1735798218838,5.2270844,3409.2,3409.1,0.29387]
[1735798219137,8.4348844,3409.2,3409.1,0.29387]
[1735798219542,8.4348844,3409.2,3409.0,0.29387]
[1735798219743,0.6484,3409.1,3409.0,0.29387]
[1735798221540,6.41076495,3409.1,3409.0,0.29387]
[1735798224638,5.76236495,3409.1,3409.0,0.29387]
[1735798226648,8.43930963,3409.2,3408.9,1.158]
[1735798226849,8.43930963,3409.2,3409.1,0.29387]
[1735798227844,3.8358,3409.2,3409.1,0.29387]
[1735798229346,3.8358,3409.2,3408.9,1.158]
[1735798229556,0.29388,3409.0,3408.8,1.158]
[1735798230645,0.29388,3409.0,3408.7,1.4519]
[1735798231143,0.29388,3409.0,3408.4,3.2078]
[1735798231345,0.2939,3408.7,3408.4,0.29392]
[1735798231549,1.3374,3408.6,3408.5,0.29392]
[1735798232649,1.3374,3408.6,3407.8,2.92842677]
[1735798232850,1.3374,3408.6,3408.2,0.29394]
[1735798232851,0.29392,3408.5,3408.2,0.29394]
[1735798233045,0.29393,3408.4,3408.1,0.29395]
[1735798233247,3.2078,3408.3,3408.0,0.29396]
[1735798233647,0.6716,3408.2,3408.0,0.29396]
[1735798233848,6.42419349,3408.2,3408.0,1.45196]
[1735798234244,6.42419349,3408.2,3408.0,0.29396]
[1735798234550,6.42419349,3408.2,3408.0,1.45196]
[1735798235049,0.29399,3407.7,3407.4,0.29401]
[1735798235348,1.9374,3407.6,3407.4,1.45201]
[1735798235553,1.9374,3407.6,3407.4,0.29401]
[1735798235855,1.9374,3407.6,3407.4,1.45201]
[1735798236049,2.2314,3407.6,3407.4,1.158]
[1735798236249,1.9374,3407.6,3407.0,8.0068]
[1735798236455,0.29401,3407.5,3407.1,1.158]
[1735798236656,0.29401,3407.5,3407.0,7.341]
[1735798236851,3.2078,3407.4,3407.2,0.29403]
[1735798237658,3.44588145,3407.3,3407.2,0.29403]
[1735798239764,3.44588145,3407.3,3406.6,40.8]
[1735798239952,3.73990145,3407.3,3406.6,1.158]
[1735798240253,0.29403,3407.3,3406.9,0.29405]
[1735798240454,0.29403,3407.3,3407.0,0.29405]
[1735798240649,0.29402,3407.3,3406.9,0.29405]
[1735798240963,0.29402,3407.3,3406.7,1.158]
[1735798240964,6.94770145,3407.4,3407.0,0.29404]
[1735798241261,6.94770145,3407.4,3407.1,0.29404]
[1735798242055,6.94770145,3407.4,3407.2,0.29403]
[1735798242056,3.44588145,3407.3,3407.2,0.29403]
[1735798243460,3.2078,3407.4,3407.3,0.29402]
[1735798248464,3.2078,3407.4,3407.1,2.28782677]
[1735798248465,1.9374,3407.6,3407.5,0.294]
[1735798248864,1.2856,3407.6,3407.5,0.294]
[1735798249562,1.4355,3407.6,3407.5,0.294]
[1735798259761,0.805,3407.6,3407.5,0.294]
[1735798260162,0.1499,3407.6,3407.5,0.294]
[1735798266772,0.1499,3407.6,3407.5,0.9484]
[1735798267673,0.1499,3407.6,3407.5,9.1562]
[1735798267874,3.23580951,3408.1,3408.0,2.58178677]
[1735798268071,3.23580951,3408.1,3408.0,6.94758677]
[1735798268963,1.60695,3408.2,3408.0,1.158]
[1735798269365,0.29395,3408.1,3408.0,1.158]
[1735798269766,0.29396,3408.0,3407.7,1.45198]
[1735798269966,0.29396,3408.0,3407.8,0.29398]
[1735798269967,3.2078,3408.0,3407.8,0.29398]
[1735798270168,0.6741,3407.9,3407.8,0.29398]
[1735798270372,0.29398,3407.8,3407.7,1.158]
[1735798270975,0.294,3407.7,3407.4,1.45201]
[1735798271277,0.6741,3407.9,3407.4,1.45201]
[1735798271278,4.8148,3407.6,3407.4,1.158]
[1735798271673,0.294,3407.5,3407.2,0.29403]
[1735798271871,4.5208,3407.6,3407.2,1.158]
[1735798272068,0.658,3407.4,3407.3,0.29402]
[1735798273370,9.11973106,3407.6,3407.2,1.158]
[1735798273573,9.11973106,3407.6,3407.5,0.294]
[1735798273778,8.44793106,3407.6,3407.5,0.294]
[1735798274174,7.80673106,3407.6,3407.5,0.294]
[1735798274874,3.2078,3407.6,3407.5,0.294]
[1735798276174,7.80673106,3407.6,3407.5,0.294]
[1735798276879,4.59893106,3407.6,3407.5,0.294]
[1735798277677,5.74866382,3407.6,3407.5,0.294]
[1735798279683,0.99147,3407.9,3407.4,2.28782677]
[1735798279986,0.99147,3407.9,3407.4,2.58183677]
[1735798279987,0.6777,3407.5,3407.4,2.58183677]
[1735798281075,0.6975,3407.9,3407.8,0.29398]
[1735798282092,6.44893504,3407.9,3407.8,0.29398]
[1735798282278,7.12663504,3407.9,3407.8,0.29398]
[1735798283885,1.3752,3407.9,3407.4,2.28782677]
[1735798284085,1.3752,3407.9,3407.6,0.29399]
[1735798284282,0.29398,3407.8,3407.6,0.29399]
[1735798285188,5.75212028,3407.7,3407.6,0.29399]
[1735798286082,1.66917,3407.9,3407.6,0.29399]
[1735798286984,8.58944179,3407.9,3407.6,0.29399]
[1735798287489,10.58329856,3407.9,3407.1,1.158]
[1735798287788,3.2078,3407.3,3407.2,0.29403]
[1735798288191,5.2404,3407.3,3407.2,0.29403]
[1735798288885,5.53442,3407.3,3407.1,0.29404]
[1735798289080,5.53442,3407.3,3406.9,1.158]
[1735798289081,5.2404,3407.3,3407.2,0.29403]
[1735798290386,10.99054312,3407.3,3407.2,0.29403]
[1735798291493,5.2404,3407.3,3407.2,0.29403]
[1735798294295,10.3294405,3407.3,3407.2,0.29403]
[1735798294496,7.1216405,3407.3,3407.2,0.29403]
[1735798296295,1.3713,3407.3,3407.2,0.29403]
[1735798300397,1.3713,3407.3,3406.9,1.8436]
[1735798300598,1.3713,3407.3,3407.2,0.29403]
[1735798303305,0.6697,3407.3,3407.2,0.29403]
[1735798304400,8.95581643,3407.4,3407.0,0.6855]
[1735798304401,8.95581643,3407.4,3407.3,0.29402]
[1735798304606,3.2078,3407.4,3407.3,0.29402]
[1735798305909,5.74801643,3407.5,3407.4,0.29401]
[1735798306108,5.74801643,3407.5,3407.4,3.22613677]
[1735798306415,5.74801643,3407.5,3407.4,4.33622686]
[1735798307110,7.58341323,3407.7,3407.6,0.294]
[1735798307510,4.59941323,3407.7,3407.6,0.74809009]
[1735798307712,4.59941323,3407.7,3407.6,0.85314762]
[1735798308314,1.79721323,3407.7,3407.6,0.85314762]
[1735798308713,1.79721323,3408.3,3408.2,0.29395]
[1735798308913,1.79721323,3408.3,3408.2,1.90604009]
[1735798309621,0.652,3408.4,3408.2,1.158]
[1735798309920,0.652,3408.4,3408.3,0.29394]
[1735798310719,5.74801643,3408.7,3408.2,1.158]
[1735798310923,5.74801643,3408.7,3408.6,2.28782677]
[1735798311122,5.74801643,3408.7,3408.6,2.58173677]
[1735798312120,0.6729,3408.9,3408.8,0.29389]
[1735798312314,1.3285,3409.2,3408.9,0.29389]
[1735798312621,0.6729,3409.1,3408.9,0.29389]
[1735798313318,0.6729,3409.1,3408.9,2.58171677]
[1735798322233,5.74801643,3409.7,3409.2,0.73465]
[1735798322430,1.9958,3409.6,3409.4,2.28782677]
[1735798322626,1.9958,3409.6,3409.5,0.29383]
[1735798324135,5.2036,3409.6,3409.5,0.29383]
[1735798324834,1.9958,3409.6,3409.5,0.29383]
[1735798331442,0.6455,3409.6,3409.5,0.29383]
[1735798332147,0.6455,3409.6,3409.4,2.28782677]
[1735798332148,3.2078,3409.7,3409.6,0.29383]
[1735798333455,0.669,3410.0,3409.9,0.2938]
[1735798333750,0.669,3410.0,3409.9,2.58162677]
[1735798334439,3.42961258,3410.5,3410.4,0.29376]
[1735798334645,4.07141258,3410.5,3410.4,3.73858677]
[1735798335740,0.6418,3410.5,3410.4,3.73858677]